Cogmind - Beta 13 @@@ ROGUE MODE // 2024.04.14 @ 20:10:23 Player: luckinvolved Result: Destroyed by Y-54 Guardian with Gatling Laser Performance ------------- Evolutions (1) 500 Regions Visited (5) 1000 Robots Destroyed (21) 105 Value Destroyed (827) 827 Prototype IDs (3) 60 Alien Tech Used (0) 0 Bonus (692) 692 TOTAL SCORE: 3184 Bonus ------- Follower Combat Kills 92 Met Imprinter 300 Was Imprinted 300 Cogmind --------- Core Integrity 0/400 Matter 300/300 Energy 29/100 System Corruption 8% Temperature Cool (6) Movement Treading (170) Location -6/Proximity Caves Parts ------- > --- POWER (1) -------- (None) > --- PROPULSION (2) --- Armored Treads > --- UTILITY (4) ------ Heat Sink > --- WEAPON (2) ------- (None) > --- INVENTORY (5) ---- Armored Treads Beam Rifle Grenade Launcher CR-A16's Pointy Stick GAL Module Peak State ------------ > --- POWER ------------ Improved Ion Engine > --- PROPULSION ------- Armored Treads Improved Medium Treads > --- UTILITY ---------- Heat Sink Small Storage Unit Structural Scanner Hacking Drone Bay > --- WEAPON ----------- RU-N14's Throwing Claymores RU-N14's Throwing Claymores > --- INVENTORY -------- Beam Rifle Improved Medium Laser Heavy Assault Rifle Grenade Launcher RU-N14's Throwing Claymores RU-N14's Throwing Claymores CR-A16's Pointy Stick GAL Module [Rating: 39] Favorites ----------- Power Improved Ion Engine Engine Improved Ion Engine Propulsion Light Treads Treads Light Treads Utility Small Storage Unit Device Structural Scanner Storage Small Storage Unit Protection Light Armor Plating Weapon RU-N14's Throwing Claymores Energy Gun Improved Medium Laser Ballistic Gun Heavy Assault Rifle Special Weapon RU-N14's Throwing Claymores Build | -11 -10 -9 -9 -7 -6 ------- Run | Yrd Mat Mat Min Zio Pro Slots Evolved 2 | . . 2 . . . Power . | . . . . . . Propulsion . | . . . . . . Utility 2 | . . 2 . . . Weapon . | . . . . . . Parts Attached 32 | 6 1 6 1 6 12 Power 3 | 1 . 1 . . 1 Engine 3 | 1 . 1 . . 1 Core . | . . . . . . Reactor . | . . . . . . Propulsion 9 | 2 . . . 1 6 Treads 9 | 2 . . . 1 6 Leg . | . . . . . . Wheel . | . . . . . . Hover . | . . . . . . Flight . | . . . . . . Utility 8 | 1 1 3 1 1 1 Device 6 | . 1 2 1 1 1 Storage 1 | 1 . . . . . Processor . | . . . . . . Hackware . | . . . . . . Protection 1 | . . 1 . . . Artifact . | . . . . . . Weapon 12 | 2 . 2 . 4 4 Energy Gun 4 | 1 . 1 . . 2 Energy Cannon . | . . . . . . Ballistic Gun 3 | 1 . 1 . . 1 Ballistic Cannon . | . . . . . . Launcher . | . . . . . . Special Weapon 5 | . . . . 4 1 Impact Weapon . | . . . . . . Slashing Weapon . | . . . . . . Piercing Weapon . | . . . . . . Special Melee Weapon . | . . . . . . Unidentified Prototypes 3 | . . 1 . 2 . Corrupted Parts 3 | . . . . . 3 System Corruption 8 | . . . . . 8 Parts Lost 11 | . . 1 . . 10 Power 2 | . . . . . 2 Propulsion 2 | . . . . . 2 Utility 5 | . . 1 . . 4 Weapon 2 | . . . . . 2 Highest Loss Streak 8 | . . 1 . . 8 To Critical Strikes . | . . . . . . Average Slot Usage (%) 96 | . 95 98 100 100 92 Engine 11 | . 14 11 11 11 10 Treads 22 | . 28 22 22 22 21 Device 25 | . 9 26 22 27 27 Storage 11 | . 14 11 11 11 11 Protection 2 | . . 4 11 5 . Energy Gun 6 | . 14 11 11 2 7 Ballistic Gun 5 | . 14 11 11 2 7 Special Weapon 10 | . . . . 16 7 Naked Turns . | . . . . . . Heaviest Build 34 | 14 15 24 23 33 34 Greatest Support 58 | 40 40 40 40 40 58 Greatest Overweight (x) 9 | 1 . . . . 9 Average Overweight (x) . | . . . . . . Largest Inventory Capacity 8 | 8 8 8 8 8 8 Average Capacity 7 | 7 8 8 8 8 7 Most Carried 8 | 2 5 8 8 8 8 Average Carried 7 | 1 3 5 8 7 7 Final Capacity 8 | 8 8 8 8 8 5 Final Carried 8 | 2 5 8 8 8 5 Class Distribution -------------------- 66% | Scavenger-Mutant 33% | Mutant Dominant Class ---------------- Mutant | -10/Materials Mutant | -9/Materials Mutant | -9/Mines Scavenger-Mutant | -7/Zion Scavenger-Mutant | -6/Proximity Caves Resources | -11 -10 -9 -9 -7 -6 ----------- Run | Yrd Mat Mat Min Zio Pro Matter Collected 656 | 222 111 83 . 70 170 Remotely . | . . . . . . Salvage Created 870 | . 218 190 . . 462 Parts 38 | . 10 12 . . 16 Haulers Intercepted . | . . . . . . Recyclers Shooed . | . . . . . . Parts Field Recycled . | . . . . . . Retrieved Matter . | . . . . . . Parts Self-Destructed 15 | . . . . 3 12 Prevented 10 | . . . . . 10 Kills | -11 -10 -9 -9 -7 -6 ------- Run | Yrd Mat Mat Min Zio Pro Combat Hostiles Destroyed 17 | . 4 2 . . 11 Guns 12 | . 4 2 . . 6 Cannons 1 | . . . . . 1 AOE 4 | . . . . . 4 Classes Destroyed 8 | . 2 2 . . 4 Builder 2 | . 1 1 . . . Recycler 2 | . . 1 . . 1 Swarmer 2 | . . . . . 2 Grunt 8 | . 4 . . . 4 Duelist 2 | . . . . . 2 Sentry 3 | . . 2 . . 1 Hunter 1 | . . . . . 1 Behemoth 1 | . . . . . 1 Best Kill Streak 5 | . 4 2 . . 5 Combat Bots Only 5 | . 4 1 . . 5 Max Kills in Single Turn 4 | . 1 1 . . 4 Gunslinging . | . . . . . . Exploded 2 | . . . . . 2 Melee . | . . . . . . Uniques/NPCs Destroyed . | . . . . . . Combat | -11 -10 -9 -9 -7 -6 -------- Run | Yrd Mat Mat Min Zio Pro Hostile Shots Fired 232 | . 30 22 . . 180 Missed 69 | . 6 8 . . 55 Damage Taken 2222 | . 334 150 . . 1738 Core 535 | . 127 11 . . 397 Absorbed by Shields 59 | . . 59 . . . Core Remaining (%) 74 | 100 49 . . . . Volleys Fired 54 | . 21 7 . . 26 Largest 2 | . 2 2 . . 2 Hottest 79 | . 70 79 . . 79 Shots Fired 108 | . 43 14 . . 51 Gun 99 | . 43 14 . . 42 Cannon . | . . . . . . Launcher . | . . . . . . Special 9 | . . . . . 9 Kinetic 47 | . 21 7 . . 19 Thermal 52 | . 22 7 . . 23 Explosive 9 | . . . . . 9 Electromagnetic . | . . . . . . Robot Hit Streak 10 | . 8 10 . . 8 Robot Miss Streak 2 | . 1 1 . . 2 Penetration Max . | . . . . . . Secondary Targets 2 | . . . . . 2 Max Gunslinging Chain 1 | . . . . . 1 Shots Hit Robots 75 | . 33 9 . . 33 Core Hits 47 | . 11 6 . . 30 Critical Kills . | . . . . . . Critical Parts Destroyed . | . . . . . . Critical Strikes 6 | . 3 . . . 3 Burn 5 | . 3 . . . 2 Sever 1 | . . . . . 1 Melee Attacks . | . . . . . . Impact . | . . . . . . Slashing . | . . . . . . Piercing . | . . . . . . Sneak Attacks . | . . . . . . Combat Hostiles . | . . . . . . Follow-up Attacks . | . . . . . . Damage Inflicted 2623 | . 411 156 . . 2056 Guns 1028 | . 411 156 . . 461 Cannons . | . . . . . . Explosions 1347 | . . . . . 1347 Melee . | . . . . . . Ramming . | . . . . . . Kinetic 451 | . 185 71 . . 195 Thermal 577 | . 226 85 . . 266 Explosive 1347 | . . . . . 1347 Electromagnetic . | . . . . . . Impact . | . . . . . . Slashing 248 | . . . . . 248 Piercing . | . . . . . . Highest Corruption 8 | . 3 . . . 8 Average Corruption 4 | . 2 . . . 4 Corruption Purged . | . . . . . . Corruption Blocked . | . . . . . . Effects 22 | . 5 . . . 17 Message Errors 10 | . 3 . . . 7 Matter Fused 4 | . 1 . . . 3 Energy Discharges 3 | . . . . . 3 Data Loss (minor) 2 | . . . . . 2 Misfires 3 | . 1 . . . 2 Overload Shots . | . . . . . . Overflow Damage 16 | . . . . . 16 Projectiles . | . . . . . . Explosions 16 | . . . . . 16 Melee . | . . . . . . Knockbacks . | . . . . . . Impact . | . . . . . . Kinetic . | . . . . . . Secondary . | . . . . . . Self-Inflicted Damage . | . . . . . . Shots . | . . . . . . Rammed . | . . . . . . Targets Rammed . | . . . . . . Kicked . | . . . . . . Crushed . | . . . . . . Highest Temperature 228 | . 228 2 . . 120 Average Temperature 69 | . 89 2 . . 36 Received Heat Transfer 477 | . 195 42 . . 240 Siege Activations . | . . . . . . Robots Corrupted . | . . . . . . Combat Hostiles . | . . . . . . Parts Fried . | . . . . . . Impact Corruptions . | . . . . . . Robots Melted . | . . . . . . Combat Hostiles . | . . . . . . Parts Melted 1 | . 1 . . . . Heat Transferred 1794 | . 888 185 . . 721 Parts Sabotaged . | . . . . . . Parts Stolen . | . . . . . . Parts Stripped . | . . . . . . Power Chain Reactions . | . . . . . . Alert | -11 -10 -9 -9 -7 -6 ------- Run | Yrd Mat Mat Min Zio Pro Peak Influence 141 | . 120 141 54 . . Initial 54 | . . 50 54 . . Average 52 | . 40 82 54 . . Maximum Alert Level . | . . . . . . Low Security (%) 100 | 100 100 100 100 . . Level 1 . | . . . . . . Level 2 . | . . . . . . Level 3 . | . . . . . . Level 4 . | . . . . . . Level 5 . | . . . . . . High Security . | . . . . . . Max Security . | . . . . . . Squads Dispatched 1 | . 1 . . . . Investigation . | . . . . . . Extermination . | . . . . . . Reinforcement 1 | . 1 . . . . Assault . | . . . . . . Garrison . | . . . . . . Intercept . | . . . . . . Searches Triggered . | . . . . . . Construction Impeded . | . . . . . . Haulers Reinforced . | . . . . . . Active Scanning Responses . | . . . . . . Cargo Convoy Interrupts . | . . . . . . Stealth | -11 -10 -9 -9 -7 -6 --------- Run | Yrd Mat Mat Min Zio Pro Distress Signals . | . . . . . . Communications Jammed . | . . . . . . Distress Signals . | . . . . . . Times Spotted 25 | . 5 3 . . 17 Peak Tracking Total 7 | . 5 1 . . 7 Tactical Retreats . | . . . . . . Traps | -11 -10 -9 -9 -7 -6 ------- Run | Yrd Mat Mat Min Zio Pro Traps Triggered 3 | . 2 . . . 1 Indirectly . | . . . . . . Trap Hack Attempts . | . . . . . . Triggered . | . . . . . . Disarmed . | . . . . . . Reprogrammed . | . . . . . . Reused . | . . . . . . Traps Extracted . | . . . . . . Installed . | . . . . . . Triggered . | . . . . . . Machines | -11 -10 -9 -9 -7 -6 ---------- Run | Yrd Mat Mat Min Zio Pro Machines Disabled . | . . . . . . Max in Single Turn . | . . . . . . Machines Repaired . | . . . . . . Machines Dismantled . | . . . . . . Machines Sabotaged . | . . . . . . Overloaded Fab Kills . | . . . . . . Hacking | -11 -10 -9 -9 -7 -6 --------- Run | Yrd Mat Mat Min Zio Pro Machines Accessed 2 | . 1 1 . . . Terminals 2 | . 1 1 . . . Fabricators . | . . . . . . Repair Stations . | . . . . . . Recycling Units . | . . . . . . Scanalyzers . | . . . . . . Garrison Access . | . . . . . . Total Hacks 3 | . 2 1 . . . Successful . | . . . . . . Failed 3 | . 2 1 . . . Catastrophic 2 | . 1 1 . . . Database Lockouts . | . . . . . . Manual 3 | . 2 1 . . . Terminals 3 | . 2 1 . . . Fabricators . | . . . . . . Repair Stations . | . . . . . . Recycling Units . | . . . . . . Scanalyzers . | . . . . . . Garrison Access . | . . . . . . Terminal Hacks . | . . . . . . Fabricator Hacks . | . . . . . . Repair Station Hacks . | . . . . . . Recycling Unit Hacks . | . . . . . . Scanalyzer . | . . . . . . Garrison Access Hacks . | . . . . . . Unauthorized Hacks . | . . . . . . Terminals . | . . . . . . Fabricators . | . . . . . . Repair Stations . | . . . . . . Recycling Units . | . . . . . . Scanalyzers . | . . . . . . Garrison Access . | . . . . . . Data Cores Recovered . | . . . . . . Used . | . . . . . . Hacking Detections 2 | . 1 1 . . . Full Trace Events . | . . . . . . Feedback Events . | . . . . . . Feedback Blocked . | . . . . . . Robot Schematics Acquired 3 | . . . . 3 . Robots Built . | . . . . . . Authchips . | . . . . . . Time . | . . . . . . Total Robot Build Rating . | . . . . . . Part Schematics Acquired 13 | . . . . 13 . Parts Built . | . . . . . . Authchips . | . . . . . . Time . | . . . . . . Total Part Build Rating . | . . . . . . Parts Repaired . | . . . . . . Time . | . . . . . . Parts Recycled . | . . . . . . Recycled Matter . | . . . . . . Retrieved Matter . | . . . . . . Retrieved Components . | . . . . . . Parts Scanalyzed . | . . . . . . Part Schematics Acquired . | . . . . . . Parts Damaged . | . . . . . . Bothacking | -11 -10 -9 -9 -7 -6 ------------ Run | Yrd Mat Mat Min Zio Pro Used RIF Installer . | . . . . . . Robots Hacked . | . . . . . . Non-combat . | . . . . . . Combat . | . . . . . . Robot Hacks Applied . | . . . . . . Relay Couplers Released . | . . . . . . Fabnet Peak Effective % . | . . . . . . Robots Rewired . | . . . . . . Allies Hacked . | . . . . . . Hacks Repelled . | . . . . . . Allies | -11 -10 -9 -9 -7 -6 -------- Run | Yrd Mat Mat Min Zio Pro Total Allies 4 | . . . . 4 . Largest Group 4 | . . . . 4 4 Highest-Rated Group 152 | . . . . 152 152 Highest-Rated Ally 40 | . . . . 40 40 Total Orders . | . . . . . . Ally Attacks 28 | . . . . . 28 Total Damage 680 | . . . . . 680 Kills 3 | . . . . . 3 Allies Corrupted . | . . . . . . Allies Melted . | . . . . . . Intel | -11 -10 -9 -9 -7 -6 ------- Run | Yrd Mat Mat Min Zio Pro Robot Analysis Total . | . . . . . . Derelict Logs Recovered 3 | . . . . 1 2 Drone Launches 1 | . . . . 1 . Drone Recoveries 1 | . . . . . 1 Exploration | -11 -10 -9 -9 -7 -6 ------------- Run | Yrd Mat Mat Min Zio Pro Turns Passed 3887 | 78 383 276 5 1811 1334 Spaces Moved 2234 | 47 191 128 3 1116 749 Core 9 | 8 . . . . 1 Treads 2225 | 39 191 128 3 1116 748 Legs . | . . . . . . Wheels . | . . . . . . Hover . | . . . . . . Flight . | . . . . . . Fastest Speed 50 | 50 160 160 160 160 160 Average Speed 161 | 145 160 160 160 160 164 Slowest Speed 500 | 160 160 160 160 160 500 Overloaded Moves . | . . . . . . Propulsion Burnouts . | . . . . . . Robots Hopped . | . . . . . . Cave-ins Triggered . | . . . . . . Exploration Rate (%) 33 | 4 23 12 5 89 70 Regions Visited 5 Branch Regions 3 Pre-discovered Areas 1 | . . . . . 1 Known Exits Taken 1 | . . . . 1 . Unknown Exits Taken 4 | 1 1 1 1 . . Scrap Searched 7 | . . . . 4 3 Spaces Dug . | . . . . . . Terrain Destroyed 10 | . . . . . 10 Melee . | . . . . . . Projectile 1 | . . . . . 1 AOE 9 | . . . . . 9 Terrain Rammed . | . . . . . . Walls Destroyed . | . . . . . . Machines Disabled . | . . . . . . Actions | -11 -10 -9 -9 -7 -6 --------- Run | Yrd Mat Mat Min Zio Pro Total 2412 | 54 226 185 3 1144 800 Wait 61 | . 11 35 . 6 9 Move 2229 | 46 190 127 2 1115 749 Hop . | . . . . . . Pick Up 19 | 2 3 5 . 7 2 Fast Attach 21 | 6 1 5 . 2 7 Attach 5 | . . 1 . . 4 Detach 2 | . . 1 . 1 . Swap 6 | . . . 1 4 1 Drop 15 | . . 4 . 9 2 Fire 54 | . 21 7 . . 26 Melee . | . . . . . . Ram . | . . . . . . Kick . | . . . . . . Crush . | . . . . . . Escape Stasis . | . . . . . . Rewire . | . . . . . . Trap . | . . . . . . Miscellaneous . | . . . . . . Route ------- -11/Scrapyard -10/Materials -9/Materials -9/Mines -7/Zion -6/Proximity Caves History --------- Turn | Location | Event 5 | -11/Scrapyard | Discovered new exit (range 16) 79 | -11/Scrapyard | Entered Materials 310 | -10/Materials | Build established: Mutant 370 | -10/Materials | Core integrity fell below 50% 425 | -10/Materials | Discovered new exit (range 12) 462 | -10/Materials | Entered another Materials area 462 | -9/Materials | Evolved 2 slots: Utility x2 639 | -9/Materials | Discovered new exit (range 14) 738 | -9/Materials | Entered Mines 739 | -9/Mines | A Derelict revealed a hidden shortcut to a safe place 743 | -9/Mines | Entered Zion 905 | -7/Zion | Identified exit to Proximity Caves 1044 | -7/Zion | Build established: Scavenger-Mutant 1183 | -7/Zion | Found Prototype Special Weapon 1183 | -7/Zion | Identified RU-N14's Throwing Claymores 1188 | -7/Zion | Found RU-N14's Throwing Claymores 1191 | -7/Zion | Found RU-N14's Throwing Claymores 1196 | -7/Zion | Found RU-N14's Throwing Claymores 1579 | -7/Zion | Given the Hacking Drone Bay 1582 | -7/Zion | Found Prototype Device 1582 | -7/Zion | Identified Hacking Drone Bay 1691 | -7/Zion | Given A8's code to call for help 1816 | -7/Zion | Imprinted 1819 | -7/Zion | Declared Zion's savior 2149 | -7/Zion | Found GAL Module 2400 | -7/Zion | Found CR-A16's Pointy Stick 2554 | -7/Zion | Entered Proximity Caves 2554 | -6/Proximity Caves | Accompanied by 5 allies 2588 | -6/Proximity Caves | Learned Factory stockpile data 2905 | -6/Proximity Caves | Spotted B-75 Beast 2928 | -6/Proximity Caves | Allies destroyed B-75 Beast 2974 | -6/Proximity Caves | Spotted B-75 Beast 2975 | -6/Proximity Caves | Entered a huge 0b10 base via the front door 3001 | -6/Proximity Caves | Destroyed B-75 Beast 3027 | -6/Proximity Caves | Lost 3 allies 3208 | -6/Proximity Caves | Core integrity fell below 50% 3528 | -6/Proximity Caves | Build established: Mutant 3875 | -6/Proximity Caves | Core integrity fell below 20% 3888 | -6/Proximity Caves | Destroyed by Y-54 Guardian with Gatling Laser Last Messages --------------- 03855_ Slug penetrates Wall. 03855_ Penetrated by Slug. 03857_ G-50 Soldier destroyed. 03858_ Imp. Melee Analysis Suite fries itself beyond repair. 03858_ Penetrated by Slug. 03858_ U-05 Engineer destroyed. 03861_ Acquired 15 matter. 03862_ Lgt. Ion Engine fries itself beyond repair. 03864_ Wheel fries itself beyond repair. 03867_ Carbon-fiber Leg fries itself beyond repair. 03874_ Penetrated by Slug. 03878_ Hacking Drone Bay destroyed. 03878_ Slug penetrates Wall. 03879_ RU-N14's Throwing Claymores expended. 03879_ Imp. Medium Treads destroyed. 03879_ Structural Scanner destroyed. 03884_ Penetrated by Slug. 03884_ Imp. Medium Laser destroyed. 03887_ Penetrated by Slug. 03887_ Sml. Storage Unit destroyed. Map ----- +----------------------------------------------------+ | ?????????????????????????????????????????????????? | | ?????????????????????????????????????????????????? | | ?????????????????????????????????????????????????? | | ?????????????????????????????????????????????????? | | ?????????????????????????????????????????????????? | | ?????????????????????????????????????????????????? | | ?????????????????????????????????????????????????? | | ?????????##??????????????????????????????????????? | | ???###### #??????????????????????????????????????? | | ???# #?????????##################???????????? | | ???## #?????????##################????###????? | | ????# ##????????? " " # ????!# ????? | | ???## #?????????? " " # ?? # ????? | | ??## ###?????? " " " # !! # | | ?## #?????? " " " # ### ######+#### | | ## #??????"" " " | | # #??????"" | | ##?????""" % | | #####??????""" ## Yh ### ###/###???? | | ##??????????""" # # #???? | | #???????????""" # # ????????? | | #???????????""" # # ????????? | | ########????" # + # # ????????? | | #????" ? # # " "# # ????????? | | #????"??? # # "Y"# # ????????? | | ##??????? # @ # """# # #???? | | ## #??????? # ########### #######???? | | ###### #??????? # """ # # ???? | | ##?#### #??????? # "???"# # ???? | | #??# ##?????## # ""??"# # ???? | | #?# #??????## #!!! # # | | ## #??????## ########## """" ###++# | | ## #??????## """" | | # ### #??????## """" | | # #### ##?####### ########## """" ###### | | # #?######??####### ########## ###### | | #?????????## ##### ##???? | | ############ ## ### ##???? | | ############ ##### ##???? | | ### % / ^% ###?####### ## ####???? | | # ### % ########### #######???? | | ## ## % ########### #####?????? | | ## % % ##????????? | | % + ^ #####?????? | | =%"##### ###########+######?????? | | ="##### % #######%%% %%%##?????? | | ###?## ##???##%%% %%%##?????? | | ### ####?###### ######???##%%% %%%##?????? | | ##### ####??###### ######???##%%% %%%##?????? | | ??### ####???????######???????### ##?????? | +----------------------------------------------------+ Best States ------------- Heat Dissipation 38 Energy Generation 16 Energy Capacity 290 Matter Stores 300 Matter Capacity 300 Sight Range 16 Terrain Scan Density 10 Armor Coverage 150 Evasion (%) 40 Recoil Reduction 2 Item Schematics ----------------- Imp. Titanium Leg | -7/Zion | Archive Fusion Compressor | -7/Zion | Archive Plasma Rifle | -7/Zion | Archive Imp. Shield Generator | -7/Zion | Archive Hvy. Machine Gun | -7/Zion | Archive Mak. Axe | -7/Zion | Archive Disruptor Cannon | -7/Zion | Archive Lance | -7/Zion | Archive Imp. Medium Armor Plating | -7/Zion | Archive Lyr. Medium Armor Plating | -7/Zion | Archive Tactical Coordination Suite | -7/Zion | Archive Microactuators | -7/Zion | Archive Adv. Terrain Scanner | -7/Zion | Archive Robot Schematics ------------------ L-31 Rogue | -7/Zion | Archive S-27 Virus | -7/Zion | Archive K-01 Serf | -7/Zion | Archive Fabricated ------------ Nothing Alien Tech Used ----------------- None Achievements -------------- None Challenges ------------ None Game ------ Seed FluxAssaultScythe Manual? 0 Play Time 00:27:23 Cumulative 27.3 hours Start 2024.04.14 @ 19:37:44 End 2024.04.14 @ 20:10:23 Sessions 1 Manual Loads 0 Difficulty Rogue Special Mode None Game No. 58 Rogue 53 Adventurer 5 Explorer 0 Win Type - Total 0 Types 0/0/0/0/0/0/0/0/0 Lore% 10 Gallery% 38 Achievement% 28 Wizard Run 0 Options --------- Layout 0 ASCII 0 Keyboard 0 Movement Mouse Keybinds 0 Fullscreen 2 Font 24/Smallcaps Map View 38x25 Zoom Use 40% Tactical HUD 1 Map Filters NONE Filters NONE Steam 1 RUN: fc138755-37de-43e0-af88-376f1d3a7b97